fUSD/lending_fUSD_20250923
["ID","MTS","AMOUNT","RATE_DAILY","PERIOD"]
[387141031,1758588769682,-1270.12,0.00025204,2]
[387141032,1758588769698,-790.42,0.00025204,2]
[387141033,1758588769713,-546.07,0.00025204,2]
[387141034,1758588769729,-796.17,0.00025204,2]
[387141035,1758588769743,-1797.38,0.00025204,2]
[387141036,1758588769758,-1179.29,0.00025204,2]
[387141037,1758588769772,-1067.68,0.00025204,2]
[387141038,1758588769786,-685.94,0.00025204,2]
[387141039,1758588769800,-400.0,0.00025204,2]
[387141040,1758588769815,-400.0,0.00025204,2]
[387141041,1758588769830,-4410.79,0.00025204,2]
[387141042,1758588769844,-635.32,0.00025204,2]
[387141043,1758588769859,-825.39,0.00025204,2]
[387141044,1758588769876,-1159.17,0.00025204,2]
[387141045,1758588769890,-3621.17,0.00025204,2]
[387141046,1758588769905,-536.01,0.00025204,2]
[387141047,1758588769920,-1555.92,0.00025204,2]
[387141048,1758588769935,-685.82,0.00025204,2]
[387141049,1758588769950,-533.54,0.00025204,2]
[387141050,1758588769965,-3199.7,0.00025204,2]
[387141051,1758588769980,-400.0,0.00025204,2]
[387141052,1758588769995,-5083.46,0.00025204,2]
[387141053,1758588770009,-1688.59,0.00025204,2]
[387141054,1758588770024,-532.7,0.00025204,2]
[387141055,1758588770038,-726.03,0.00025204,2]
[387141056,1758588770052,-1692.11,0.00025204,2]
[387141057,1758588770066,-633.11,0.00025204,2]
[387141058,1758588770082,-411.61,0.00025204,2]
[387141059,1758588770096,-648.3,0.00025204,2]
[387141060,1758588770111,-857.03,0.00025204,2]
[387141061,1758588770128,-722.01,0.00025204,2]
[387141062,1758588770143,-1108.24,0.00025204,2]
[387141063,1758588770158,-464.86,0.00025204,2]
[387141064,1758588770173,-2367.09,0.00025204,2]
[387141065,1758588770188,-1636.84,0.00025204,2]
[387141066,1758588770204,-2136.91,0.00025204,2]
[387141067,1758588770220,-555.5,0.00025204,2]
[387141068,1758588770234,-914.0,0.00025204,2]
[387141069,1758588770250,-887.03,0.00025204,2]
[387141070,1758588770265,-4785.63,0.00025204,2]
[387141071,1758588770281,-1767.45,0.00025204,2]
[387141072,1758588770295,-1514.68,0.00025204,2]
[387141073,1758588770308,-553.9,0.00025204,2]
[387141074,1758588770323,-644.46,0.00025204,2]
[387141075,1758588770337,-434.59,0.00025204,2]
[387141076,1758588770351,-1093.45,0.00025204,2]
[387141077,1758588770365,-2259.45,0.00025204,2]
[387141078,1758588770379,-1283.49,0.00025204,2]
[387141079,1758588770394,-579.07,0.00025204,2]
[387141080,1758588770410,-1392.04,0.00025204,2]
[387141081,1758588770425,-586.63,0.00025204,2]
[387141082,1758588770440,-852.34,0.00025204,2]
[387141083,1758588770459,-400.0,0.00025204,2]
[387141084,1758588770476,-602.29,0.00025204,2]
[387141085,1758588770491,-2120.46,0.00025204,2]
[387141086,1758588770505,-730.17,0.00025204,2]
[387141087,1758588770521,-713.11,0.00025204,2]
[387141088,1758588770537,-824.24,0.00025204,2]
[387141089,1758588770551,-2178.93,0.00025204,2]
[387141090,1758588770567,-563.68,0.00025204,2]
[387141091,1758588770583,-624.27,0.00025204,2]
[387141092,1758588770599,-1279.8,0.00025204,2]
[387141093,1758588770614,-5000.0,0.00025204,2]
[387141094,1758588770872,-441.86,0.00025205,2]
[387141095,1758588770882,-555.17,0.00025205,2]
[387141096,1758588770891,-491.16,0.00025205,2]
[387141097,1758588770902,-416.06,0.00025205,2]
[387141098,1758588770912,-439.92,0.00025205,2]
[387141099,1758588770923,-428.44,0.00025205,2]
[387141100,1758588770932,-754.63,0.00025205,2]
[387141101,1758588770942,-403.38,0.00025205,2]
[387141102,1758588770951,-917.82,0.00025205,2]
[387141103,1758588770960,-252.6,0.00025205,2]
[387141104,1758588770969,-504.07,0.00025205,2]
[387141105,1758588770978,-535.33,0.00025205,2]
[387141106,1758588770988,-414.45,0.00025205,2]
[387141107,1758588770997,-597.93,0.00025205,2]
[387141108,1758588771006,-599.79,0.00025205,2]
[387141109,1758588771015,-512.84,0.00025205,2]
[387141110,1758588771024,-830.32,0.00025205,2]
[387141111,1758588771034,-400.0,0.00025205,2]
[387141112,1758588771043,-400.0,0.00025205,2]
[387141113,1758588771053,-877.74,0.00025205,2]
[387141114,1758588771062,-454.04,0.00025205,2]
[387141115,1758588771071,-944.31,0.00025205,2]
[387141116,1758588771081,-866.7,0.00025205,2]
[387141117,1758588771090,-983.28,0.00025205,2]
[387141118,1758588771099,-400.0,0.00025205,2]
[387141119,1758588771109,-722.94,0.00025205,2]
[387141120,1758588771122,-400.0,0.00025205,2]
[387141121,1758588771131,-542.91,0.00025205,2]
[387141122,1758588771140,-531.68,0.00025205,2]
[387141123,1758588771150,-559.02,0.00025205,2]
[387141124,1758588771161,-682.63,0.00025205,2]
[387141125,1758588771170,-461.64,0.00025205,2]
[387141126,1758588771180,-213.84867883,0.00025205,2]
[387141127,1758588771190,-671.51,0.00025205,2]
[387141128,1758588771199,-404.72,0.00025205,2]
[387141129,1758588771208,-607.71,0.00025205,2]
[387141130,1758588771217,-400.0,0.00025205,2]
[387141131,1758588771226,-421.51,0.00025205,2]
[387141132,1758588771235,-965.94,0.00025205,2]
[387141133,1758588771244,-596.18,0.00025205,2]
[387141134,1758588771253,-417.6,0.00025205,2]
[387141135,1758588771262,-779.83,0.00025205,2]
[387141136,1758588771271,-400.0,0.00025205,2]
[387141137,1758588771281,-400.0,0.00025205,2]
[387141138,1758588771290,-720.23,0.00025205,2]
[387141139,1758588771299,-432.08,0.00025205,2]
[387141140,1758588771308,-926.5,0.00025205,2]
[387141141,1758588771317,-453.42,0.00025205,2]
[387141142,1758588771326,-441.62943184,0.00025205,2]
[387141143,1758588771336,-499.27,0.00025205,2]
[387141144,1758588771346,-415.36,0.00025205,2]
[387141145,1758588771355,-400.0,0.00025205,2]
[387141146,1758588771365,-1064.17,0.00025205,2]
[387141147,1758588771375,-400.0,0.00025205,2]
[387141148,1758588771384,-428.67,0.00025205,2]
[387141149,1758588771394,-427.84,0.00025205,2]
[387141150,1758588771404,-266.4919031,0.00025205,2]
[387141151,1758588771413,-400.0,0.00025205,2]
[387141152,1758588771422,-715.39,0.00025205,2]
[387141153,1758588771432,-515.86,0.00025205,2]
[387141154,1758588771441,-400.0,0.00025205,2]
[387141155,1758588771451,-1049.53,0.00025205,2]
[387141156,1758588771461,-669.85,0.00025205,2]
[387141157,1758588771470,-524.43,0.00025205,2]
[387141158,1758588771480,-480.73,0.00025205,2]
[387141159,1758588771489,-418.66,0.00025205,2]
[387141160,1758588771499,-487.52859853,0.00025205,2]
[387141161,1758588771508,-645.11,0.00025205,2]
[387141162,1758588771517,-3259.34,0.00025205,2]
[387141163,1758588771527,-819.08,0.00025205,2]
[387141164,1758588771536,-521.7,0.00025205,2]
[387141165,1758588771546,-527.41,0.00025205,2]
[387141166,1758588771555,-707.11,0.00025205,2]
[387141167,1758588771565,-4823.52,0.00025205,2]
[387141168,1758588771575,-1811.93,0.00025205,2]
[387141169,1758588771585,-658.31,0.00025205,2]
[387141170,1758588771594,-1161.68,0.00025205,2]
[387141171,1758588771603,-751.69,0.00025205,2]
[387141172,1758588771612,-532.84,0.00025205,2]
[387141173,1758588771622,-760.3,0.00025205,2]
[387141174,1758588771631,-427.52,0.00025205,2]
[387141175,1758588771641,-500.42,0.00025205,2]
[387141176,1758588771650,-450.15,0.00025205,2]
[387141177,1758588771659,-535.91,0.00025205,2]
[387141178,1758588771669,-440.64,0.00025205,2]
[387141179,1758588771679,-839.22,0.00025205,2]
[387141180,1758588771688,-1017.53,0.00025205,2]
[387141181,1758588771698,-5083.97978242,0.00025205,2]
[387141182,1758588772321,-0.04528343,0.0002027,2]
[387141183,1758588772411,-399.95471657,0.0002027,2]
[387141184,1758588772421,-400.0,0.00020544,2]
[387141185,1758588772433,-500.0,0.00020546,2]
[387141186,1758588772443,-400.0,0.00020547,2]
[387141187,1758588772453,-524.64,0.00021368,2]
[387141188,1758588772462,-173.28,0.00022738,2]
[387141189,1758588772471,-123.00622829,0.0002356,2]
[387141190,1758588772955,-368.35140669,0.00019899,2]
[387141191,1758588772984,-4631.64859331,0.00019899,2]
[387141192,1758588772993,-400.0,0.00019996,2]
[387141193,1758588773002,-400.0,0.00019996,2]
[387141194,1758588773011,-400.0,0.00019997,2]
[387141195,1758588773021,-400.0,0.00019997,2]
[387141196,1758588773030,-400.0,0.00019997,2]
[387141197,1758588773039,-400.0,0.00019998,2]
[387141198,1758588773048,-400.0,0.00019999,2]
[387141199,1758588773057,-257.99632399,0.00020233,2]
[387141200,1758588773067,-400.0,0.0002027,2]
[387141201,1758588773076,-400.0,0.0002027,2]
[387141202,1758588773085,-400.0,0.00020271,2]
[387141203,1758588773094,-400.0,0.00020271,2]
[387141204,1758588773103,-400.0,0.00020271,2]
[387141205,1758588773113,-400.0,0.00020272,2]
[387141206,1758588773125,-400.0,0.00020273,2]
[387141207,1758588773134,-183.6,0.00020544,2]
[387141208,1758588773143,-400.0,0.00020545,2]
[387141209,1758588773152,-400.0,0.00020545,2]
[387141210,1758588773163,-126.7550825,0.00020545,2]
[387141211,1758588773174,-273.2449175,0.00020545,2]
[387141212,1758588773183,-128.1927905,0.00020546,2]
[387141213,1758588773200,-371.8072095,0.00020546,2]
[387141214,1758588773213,-177.98,0.00020546,2]
[387141215,1758588773223,-481.86138381,0.00020814,2]
[387141216,1758588773234,-18.13861619,0.00020814,2]
[387141217,1758588773244,-400.0,0.00020819,2]
[387141218,1758588773253,-400.0,0.00020819,2]
[387141219,1758588773262,-377.1,0.00020819,2]
[387141220,1758588773271,-500.0,0.0002082,2]
[387141221,1758588773282,-398.81,0.00020821,2]
[387141222,1758588773291,-500.0,0.00021088,2]
[387141223,1758588773300,-400.0,0.00021093,2]
[387141224,1758588773311,-400.0,0.00021093,2]
[387141225,1758588773320,-633.77,0.00021094,2]
[387141226,1758588773330,-400.0,0.00021367,2]
[387141227,1758588773340,-400.0,0.00021367,2]
[387141228,1758588773349,-340.5,0.00021641,2]
[387141229,1758588773359,-276.99377171,0.0002356,2]
[387141230,1758588773368,-400.0,0.00023834,2]
[387141231,1758588773377,-1903.352168,0.00024107,2]
[387141232,1758588773387,-400.0,0.00024108,2]
[387141233,1758588773396,-1903.352168,0.00024381,2]
[387141234,1758588773405,-400.0,0.00024382,2]
[387141235,1758588773415,-1903.352168,0.00024655,2]
[387141236,1758588773423,-225.55967895,0.00024656,2]
[387141237,1758588774155,-400.0,0.00019996,2]
[387141238,1758588774166,-60.09908609,0.00019997,2]
[387141239,1758588774271,-339.90091391,0.00019997,2]
[387141240,1758588774282,-1993.15,0.00019997,2]
[387141241,1758588774291,-400.0,0.00019997,2]
[387141242,1758588774301,-400.0,0.00019997,2]
[387141243,1758588774310,-400.0,0.00019998,2]
[387141244,1758588774320,-400.0,0.00019998,2]
[387141245,1758588774329,-442.58,0.0002027,2]
[387141246,1758588774339,-400.0,0.00020271,2]
[387141247,1758588774348,-1993.15,0.00020271,2]
[387141248,1758588774358,-400.0,0.00020271,2]
[387141249,1758588774368,-400.0,0.00020271,2]
[387141250,1758588774379,-400.0,0.00020272,2]
[387141251,1758588774398,-400.0,0.00020272,2]
[387141252,1758588774407,-400.0,0.00020544,2]
[387141253,1758588774416,-400.0,0.00020545,2]
[387141254,1758588774426,-1993.15,0.00020545,2]
[387141255,1758588774436,-400.0,0.00020545,2]
[387141256,1758588774446,-400.0,0.00020545,2]
[387141257,1758588774455,-400.0,0.00020546,2]
[387141258,1758588774464,-400.0,0.00020547,2]
[387141259,1758588774474,-400.0,0.00020818,2]
[387141260,1758588774483,-400.0,0.00020819,2]
[387141261,1758588774492,-1993.15,0.00020819,2]
[387141262,1758588774502,-400.0,0.00020819,2]
[387141263,1758588774511,-400.0,0.00020819,2]
[387141264,1758588774520,-400.0,0.0002082,2]
[387141265,1758588774529,-400.0,0.00020821,2]
[387141266,1758588774538,-400.0,0.00021092,2]
[387141267,1758588774547,-400.0,0.00021093,2]
[387141268,1758588774556,-1993.15,0.00021093,2]
[387141269,1758588774566,-400.0,0.00021093,2]
[387141270,1758588774575,-400.0,0.00021094,2]
[387141271,1758588774585,-346.76,0.00021095,2]
[387141272,1758588774594,-400.0,0.00021366,2]
[387141273,1758588774603,-1993.15,0.00021367,2]
[387141274,1758588774613,-301.17,0.00021368,2]
[387141275,1758588774623,-400.0,0.0002164,2]
[387141276,1758588774633,-1993.15,0.00021641,2]
[387141277,1758588774642,-400.0,0.00021914,2]
[387141278,1758588774652,-336.46,0.00022188,2]
[387141279,1758588774662,-174.44032105,0.00024656,2]
[387141280,1758588774671,-1903.352168,0.00024929,2]
[387141281,1758588774680,-400.0,0.0002493,2]
[387141282,1758588774691,-1903.352168,0.00025203,2]
[387141283,1758588774700,-400.0,0.00025204,2]
[387141284,1758588774709,-4099.86021758,0.00025205,2]
[387141285,1758588774719,-400.0,0.00025205,2]
[387141286,1758588774728,-451.23,0.00025205,2]
[387141287,1758588774737,-894.16,0.00025205,2]
[387141288,1758588774747,-683.2,0.00025205,2]
[387141289,1758588774756,-1123.88,0.00025205,2]
[387141290,1758588774766,-406.45,0.00025205,2]
[387141291,1758588774775,-1005.19,0.00025205,2]
[387141292,1758588774784,-808.52,0.00025205,2]
[387141293,1758588774793,-1110.73,0.00025205,2]
[387141294,1758588774802,-1205.76,0.00025205,2]
[387141295,1758588774811,-741.22,0.00025205,2]
[387141296,1758588774822,-800.0,0.00025205,2]
[387141297,1758588774832,-543.0,0.00025206,2]
[387141298,1758588774841,-1800.0,0.00025238,7]
[387141299,1758588774851,-500.0,0.00025246,7]
[387141300,1758588774860,-231.24,0.00025259,2]
[387141301,1758588774870,-900.0,0.00025269,7]
[387141302,1758588774879,-267.57787126,0.0002532,13]
[387141303,1758588774888,-900.0,0.0002532,7]
[387141304,1758588774897,-250.0,0.00025321,2]
[387141305,1758588774907,-36442.31562853,0.00025359,2]
[387141306,1758588792861,169.06,0.000185,2]
[387141307,1758588794074,-150.0,0.000188,2]
[387141308,1758588794099,-3.98,0.000188,2]
[387141309,1758588797790,-163.21277512,0.000188,2]
[387141310,1758588800484,-77.28722488,0.000188,2]
[387141311,1758588800506,-165.30946798,0.00019246,2]
[387141312,1758588803196,-84.69053202,0.00019246,2]
[387141313,1758588866073,463.55,0.00030137,120]
[387141314,1758589056240,475.838043,0.00018559,2]
[387141315,1758589056606,475.838043,0.00018489,2]
[387141316,1758589056906,-306.95947412,0.00018806,2]
[387141317,1758589056947,475.838043,0.00018312,2]
[387141318,1758589057376,475.838043,0.00018242,2]
[387141319,1758589057680,475.838043,0.00018066,2]
[387141320,1758589057977,475.838043,0.00017999,2]
[387141321,1758589058280,475.838043,0.00017998,2]
[387141322,1758589058353,161.868803,0.00018489,2]
[387141323,1758589058382,163.388569,0.00018312,2]
[387141324,1758589058577,475.838043,0.0001787,2]
[387141325,1758589058666,161.868803,0.00018242,2]
[387141326,1758589058700,163.388569,0.00017999,2]
[387141327,1758589058787,152.18713,0.00018489,2]
[387141328,1758589058864,475.838043,0.00017869,2]
[387141329,1758589058957,161.868803,0.00018066,2]
[387141330,1758589058989,163.388569,0.00017869,2]
[387141331,1758589059130,152.18713,0.00018242,2]
[387141332,1758589059207,475.838043,0.00017866,2]
[387141333,1758589059274,161.868803,0.00017998,2]
[387141334,1758589059467,152.18713,0.00018066,2]
[387141335,1758589059566,475.838043,0.00017819,2]
[387141336,1758589059844,152.18713,0.00017998,2]
[387141337,1758589060181,152.18713,0.00017869,2]
[387141338,1758589060287,161.868803,0.00017869,2]
[387141339,1758589060821,152.18713,0.00017866,2]
[387141340,1758589060865,161.868803,0.00017866,2]
[387141341,1758589061267,-168.87856888,0.00018806,2]
[387141342,1758589061292,-14.60308061,0.00018806,2]
[387141343,1758589061686,828.920163,0.00018559,2]
[387141344,1758589061999,828.920163,0.00018489,2]
[387141345,1758589062292,828.920163,0.00018312,2]
[387141346,1758589062623,828.920163,0.00018242,2]
[387141347,1758589062932,828.920163,0.00018066,2]
[387141348,1758589063225,828.920163,0.00017999,2]
[387141349,1758589063332,-147.26572239,0.00018806,2]
[387141350,1758589063360,-90.589243,0.00018806,2]
[387141351,1758589063538,828.920163,0.00017998,2]
[387141352,1758589063871,828.920163,0.0001787,2]
[387141353,1758589064158,828.920163,0.00017869,2]
[387141354,1758589064506,828.920163,0.00017866,2]
[387141355,1758589064865,828.920163,0.00017819,2]
[387141356,1758589065335,-72.799326,0.00018806,2]
[387141357,1758589065359,-99.07180374,0.00018806,2]
[387141358,1758589067943,562.404164,0.00018559,2]
[387141359,1758589068941,562.404164,0.00018489,2]
[387141360,1758589069321,562.404164,0.00018312,2]
[387141361,1758589069627,562.404164,0.00018242,2]
[387141362,1758589069964,-53.11532626,0.00018806,2]
[387141363,1758589069989,-236.61637167,0.00018806,2]
[387141364,1758589070570,562.404164,0.00018066,2]
[387141365,1758589071095,562.404164,0.00017999,2]
[387141366,1758589071211,562.404164,0.00017998,2]
[387141367,1758589071521,562.404164,0.0001787,2]
[387141368,1758589071813,562.404164,0.00017869,2]
[387141369,1758589072097,562.404164,0.00017866,2]
[387141370,1758589072432,562.404164,0.00017819,2]
[387141371,1758589074212,-188.39717233,0.00018806,2]
[387141372,1758589287577,162.12,9.626e-05,2]
[387141373,1758589287797,162.12,0.00011551,2]
[387141374,1758589288017,162.12,0.00013477,2]
[387141375,1758589288246,162.12,0.00015402,2]
[387141376,1758589288461,162.12,0.00017327,2]
[387141377,1758589439693,251.94753582,0.00017206,20]
[387141378,1758589562806,150.0,0.00019208,7]
[387141379,1758589677450,150.0,0.00019402,20]
[387141380,1758589831814,-171.41366782,0.00018806,2]
[387141381,1758589831824,-219.20940276,0.00018806,2]
[387141382,1758589831834,-265.77,0.00019221,2]
[387141383,1758589831844,-162.12,0.00019252,2]
[387141384,1758589831854,-169.06,0.000193,2]
[387141385,1758589831863,-553.46,0.0001932,3]
[387141386,1758589831874,-182.0,0.00019545,2]
[387141387,1758589831884,-753.31061669,0.00019797,2]
[387141388,1758589831893,-1200.0,0.00019895,2]
[387141389,1758589831903,-221.73111403,0.00019896,2]
[387141390,1758589831913,-211.43084773,0.00019896,2]
[387141391,1758589831923,-19022.3635,0.00019898,2]
[387141392,1758589831933,-358.06167481,0.00019973,2]
[387141393,1758589831943,-500.0,0.00019973,2]
[387141394,1758589831952,-1251.38,0.00019986,2]
[387141395,1758589831962,-361.36563849,0.00019995,2]
[387141396,1758589831972,-195.81017899,0.00019995,2]
[387141397,1758589831982,-400.0,0.00019995,2]
[387141398,1758589831992,-400.0,0.00019995,2]
[387141399,1758589832002,-400.0,0.00019995,2]
[387141400,1758589832011,-400.0,0.00019995,2]
[387141401,1758589832021,-400.0,0.00019995,2]
[387141402,1758589832031,-400.0,0.00019995,2]
[387141403,1758589832042,-500.0,0.00019995,2]
[387141404,1758589832051,-400.0,0.00019995,2]
[387141405,1758589832062,-400.0,0.00019995,2]
[387141406,1758589832072,-400.0,0.00019995,2]
[387141407,1758589832082,-400.0,0.00019995,2]
[387141408,1758589832092,-400.0,0.00019995,2]
[387141409,1758589832101,-400.60526277,0.00019995,2]
[387141410,1758589832110,-400.0,0.00019995,2]
[387141411,1758589832120,-400.0,0.00019995,2]
[387141412,1758589832129,-400.0,0.00019995,2]
[387141413,1758589832138,-400.0,0.00019995,2]
[387141414,1758589832147,-400.0,0.00019995,2]
[387141415,1758589832157,-458.63,0.00019995,2]
[387141416,1758589832168,-400.0,0.00019995,2]
[387141417,1758589832178,-400.0,0.00019995,2]
[387141418,1758589832188,-365.62179195,0.00019995,2]
[387141419,1758589832200,-400.0,0.00019995,2]
[387141420,1758589832211,-400.0,0.00019995,2]
[387141421,1758589832222,-400.0,0.00019995,2]
[387141422,1758589832235,-400.0,0.00019995,2]
[387141423,1758589832246,-400.0,0.00019995,2]
[387141424,1758589832256,-400.0,0.00019995,2]
[387141425,1758589832266,-455.76,0.00019995,2]
[387141426,1758589832277,-400.0,0.00019995,2]
[387141427,1758589832288,-161.868803,0.00019995,2]
[387141428,1758589832298,-152.187131,0.00019995,2]
[387141429,1758589832307,-400.0,0.00019995,2]
[387141430,1758589832318,-163.38857,0.00019995,2]
[387141431,1758589832328,-400.0,0.00019995,2]
[387141432,1758589832338,-743.917456,0.00019995,2]
[387141433,1758589832348,-562.404164,0.00019995,2]
[387141434,1758589832357,-400.0,0.00019995,2]
[387141435,1758589832367,-400.0,0.00019995,2]
[387141436,1758589832376,-400.0,0.00019995,2]
[387141437,1758589832386,-400.0,0.00019995,2]
[387141438,1758589832395,-504.31,0.00019995,2]
[387141439,1758589832405,-400.0,0.00019995,2]
[387141440,1758589832414,-400.0,0.00019995,2]
[387141442,1758589832423,-400.0,0.00019995,2]
[387141443,1758589832433,-400.0,0.00019995,2]
[387141444,1758589832443,-400.0,0.00019995,2]
[387141445,1758589832452,-400.0,0.00019995,2]
[387141446,1758589832461,-400.0,0.00019995,2]
[387141447,1758589832471,-696.12,0.00019995,2]
[387141448,1758589832480,-400.0,0.00019995,2]
[387141449,1758589832489,-400.0,0.00019995,2]
[387141450,1758589832499,-400.0,0.00019995,2]
[387141451,1758589832509,-400.0,0.00019995,2]
[387141452,1758589832518,-400.0,0.00019995,2]
[387141453,1758589832528,-400.0,0.00019995,2]
[387141454,1758589832537,-400.0,0.00019995,2]
[387141455,1758589832546,-400.0,0.00019995,2]
[387141456,1758589832556,-400.0,0.00019995,2]
[387141457,1758589832565,-400.0,0.00019995,2]
[387141458,1758589832574,-500.0,0.00019995,2]
[387141459,1758589832584,-400.0,0.00019995,2]
[387141460,1758589832595,-400.0,0.00019995,2]
[387141461,1758589832604,-488.02,0.00019995,2]
[387141462,1758589832614,-400.0,0.00019995,2]
[387141463,1758589832623,-445.69,0.00019995,2]
[387141464,1758589832633,-400.0,0.00019995,2]
[387141465,1758589832643,-400.0,0.00019995,2]
[387141466,1758589832652,-400.0,0.00019995,2]
[387141467,1758589832661,-400.0,0.00019995,2]
[387141468,1758589832671,-471.58,0.00019995,2]
[387141469,1758589832680,-754.18,0.00019995,2]
[387141470,1758589832691,-400.0,0.00019995,2]
[387141471,1758589832700,-535.27,0.00019995,2]
[387141472,1758589832710,-400.0,0.00019995,2]
[387141473,1758589832722,-400.0,0.00019995,2]
[387141474,1758589832732,-400.0,0.00019995,2]
[387141475,1758589832742,-400.0,0.00019995,2]
[387141476,1758589832751,-3.14718848,0.00019995,2]
[387141477,1758589832766,-396.8528125,0.00019995,2]
[387141478,1758589832775,-400.0,0.00019995,2]
[387141479,1758589832785,-400.0,0.00019995,2]
[387141480,1758589832796,-67.62097497,0.00019995,2]
[387141481,1758589832808,-332.37902503,0.00019995,2]
[387141482,1758589832817,-81.06804375,0.00019995,2]
[387141483,1758589832836,-318.93195625,0.00019995,2]
[387141484,1758589832846,-520.33,0.00019995,2]
[387141485,1758589832855,-400.0,0.00019995,2]
[387141486,1758589832865,-400.0,0.00019995,2]
[387141487,1758589832875,-400.0,0.00019995,2]
[387141488,1758589832885,-400.0,0.00019995,2]
[387141489,1758589832895,-453.58,0.00019995,2]
[387141490,1758589832905,-400.0,0.00019995,2]
[387141491,1758589832914,-400.0,0.00019995,2]
[387141492,1758589832924,-400.0,0.00019995,2]
[387141493,1758589832933,-454.96,0.00019995,2]
[387141494,1758589832943,-665.64,0.00019995,2]
[387141495,1758589832953,-421.42,0.00019995,2]
[387141496,1758589832963,-400.0,0.00019995,2]
[387141497,1758589832973,-400.0,0.00019995,2]
[387141498,1758589832983,-400.0,0.00019995,2]
[387141499,1758589832992,-668.14,0.00019995,2]
[387141500,1758589833002,-575.41,0.00019995,2]
[387141501,1758589833012,-89.63155373,0.00019995,2]
[387141502,1758589833028,-276.18795812,0.00019995,2]
[387141503,1758589833040,-83.55048815,0.00019995,2]
[387141504,1758589833050,-400.0,0.00019995,2]
[387141505,1758589833060,-400.0,0.00019995,2]
[387141506,1758589833070,-400.0,0.00019995,2]
[387141507,1758589833080,-400.0,0.00019995,2]
[387141508,1758589833090,-26.81064128,0.00019995,2]
[387141509,1758589833102,-295.99999997,0.00019995,2]
[387141510,1758589837650,-508.69426525,0.00019896,2]
[387141511,1758589837660,-77.18935875,0.00019995,2]
[387141512,1758589837669,-387.46151743,0.00019995,2]
[387141513,1758589837691,-12.53848257,0.00019995,2]
[387141514,1758589837701,-400.0,0.00019995,2]
[387141515,1758589837710,-400.0,0.00019995,2]
[387141516,1758589837719,-467.36,0.00019995,2]
[387141517,1758589837728,-1338.54,0.00019995,2]
[387141518,1758589837739,-400.0,0.00019995,2]
[387141519,1758589837752,-400.0,0.00019995,2]
[387141520,1758589837762,-400.0,0.00019995,2]
[387141521,1758589837771,-400.0,0.00019995,2]
[387141522,1758589837782,-116.26151739,0.00019995,2]
[387141523,1758589837898,-283.73848261,0.00019995,2]
[387141524,1758589837907,-129.95102954,0.00019995,2]
[387141525,1758589838001,-270.04897046,0.00019995,2]
[387141526,1758589838012,-366.02606688,0.00019995,2]
[387141529,1758589839663,-33.97393312,0.00019995,2]
[387141530,1758589839673,-400.0,0.00019995,2]
[387141531,1758589839682,-122.30482219,0.00019995,2]
[387141544,1758589843102,-0.01125754,0.00019995,2]
[387141555,1758589843510,-377.68392027,0.00019995,2]